bitfinex-derivatives/quotes_ETHF0:USTF0_20250217
["timestamp","ask_amount","ask_price","bid_price","bid_amount"]
[1739758761166,2.93708825,2675.1,2674.8,0.74761]
[1739758761366,6.14488825,2675.4,2675.0,0.74755]
[1739758761682,3.2078,2675.4,2675.3,0.74747]
[1739758761882,5.6268,2675.4,2675.3,0.74747]
[1739758764176,2.419,2675.4,2675.3,0.74747]
[1739758764383,6.14488825,2675.7,2675.6,0.74739]
[1739758764578,9.13488825,2675.7,2675.6,0.74739]
[1739758765272,2.419,2675.7,2675.6,0.74739]
[1739758765476,0.571,2675.9,2675.8,0.74733]
[1739758765681,2.99,2675.9,2675.8,0.74733]
[1739758765885,0.571,2675.9,2675.8,0.74733]
[1739758766076,2.99,2675.9,2675.8,0.74733]
[1739758766277,0.571,2675.9,2675.8,0.74733]
[1739758766584,2.99,2675.9,2675.8,0.74733]
[1739758768583,1.1833,2676.1,2675.6,1.1378]
[1739758768886,2.419,2676.0,2675.9,0.7473]
[1739758769786,3.21340842,2676.2,2676.1,0.74725]
[1739758770087,5.63240842,2676.2,2676.1,0.74725]
[1739758770789,2.42460842,2676.2,2676.1,0.74725]
[1739758772392,2.42460842,2676.2,2675.8,3.2078]
[1739758772582,0.5944,2676.1,2676.0,0.74728]
[1739758773779,0.5944,2676.1,2675.8,3.2078]
[1739758773983,1.7255,2676.1,2676.0,0.74728]
[1739758775687,1.1434,2676.1,2676.0,0.74728]
[1739758776687,0.5944,2676.1,2676.0,0.74728]
[1739758776881,2.42460842,2676.2,2676.1,0.74725]
[1739758779382,2.42460842,2676.2,2676.1,1.32905]
[1739758780588,0.00560842,2676.2,2676.1,1.32905]
[1739758785080,0.00560842,2676.2,2676.1,1.91425]
[1739758814705,0.5512,2676.6,2676.5,0.74714]
[1739758815304,0.5743,2676.7,2676.6,0.74711]
[1739758816207,0.5743,2676.7,2676.6,3.95491]
[1739758820211,0.5915,2676.8,2676.6,3.2078]
[1739758820513,0.5915,2676.8,2676.7,0.74708]
[1739758825611,0.56280842,2676.9,2676.6,3.2078]
[1739758825812,0.56280842,2676.9,2676.8,0.74705]
[1739758827906,0.56280842,2676.9,2676.8,3.95485]
[1739758830211,0.00560842,2676.9,2676.8,3.95485]
[1739758831820,0.00560842,2676.9,2676.8,4.25042873]
[1739758832113,0.00560842,2676.9,2676.8,7.18923306]
[1739758833206,0.00560842,2676.9,2676.8,6.89365433]
[1739758833817,0.5706,2677.2,2677.1,0.74697]
[1739758834012,0.5436,2677.3,2676.9,1.7227]
[1739758834217,0.5436,2677.3,2677.2,0.74694]
[1739758842410,0.5899,2677.4,2677.3,0.74691]
[1739758842609,1.1521,2677.4,2677.3,0.74691]
[1739758848915,1.1521,2677.4,2677.1,3.2078]
[1739758849129,3.254916,2677.4,2677.3,0.74691]
[1739758851327,1.1521,2677.4,2677.3,0.74691]
[1739758851928,1.89898,2677.4,2677.3,0.74691]
[1739758853127,1.1521,2677.4,2677.3,0.74691]
[1739758853826,1.89898,2677.4,2677.3,0.74691]
[1739758855628,1.1521,2677.4,2677.3,0.74691]
[1739758856021,1.89898,2677.4,2677.3,0.74691]
[1739758857029,1.1521,2677.4,2677.3,0.74691]
[1739758858426,3.5681,2677.4,2677.3,0.74691]
[1739758861621,2.416,2677.4,2677.3,0.74691]
[1739758861829,2.42060842,2677.5,2677.4,0.74688]
[1739758862031,2.42060842,2677.5,2677.4,2.41848]
[1739758865323,0.00560842,2677.5,2677.4,2.41848]
[1739758865728,0.00560842,2677.5,2677.4,1.87578]
[1739758868636,0.00560842,2677.5,2677.4,5.08358]
[1739758874438,0.75246842,2677.5,2677.4,3.2078]
[1739758874940,0.75246842,2677.5,2677.4,3.95468]
[1739758876135,0.75246842,2677.5,2677.4,3.2078]
[1739758877041,0.74695,2677.2,2677.1,0.74695]
[1739758877339,3.16195,2677.2,2677.1,0.74695]
[1739758877639,0.74699,2677.1,2676.9,0.74701]
[1739758877834,1.87759,2677.1,2677.0,0.747]
[1739758878033,1.87759,2677.1,2676.9,0.74701]
[1739758878233,1.87759,2677.1,2677.0,0.747]
[1739758879141,1.1306,2677.1,2677.0,0.747]
[1739758879840,1.1306,2677.1,2677.0,1.3364]
[1739758884044,3.5456,2677.1,2677.0,1.3364]
[1739758886541,4.29257,2677.1,2677.0,0.747]
[1739758886845,4.29257,2677.1,2676.9,3.2078]
[1739758887044,4.29257,2677.1,2677.0,0.747]
[1739758887643,4.29258,2677.1,2676.9,3.2078]
[1739758887842,4.29258,2677.1,2677.0,0.747]
[1739758889551,4.29257,2677.1,2677.0,0.747]
[1739758890548,0.747,2677.0,2676.9,3.9548]
[1739758892249,4.29257,2677.1,2677.0,0.747]
[1739758892454,4.29257,2677.1,2676.9,3.2078]
[1739758892649,0.747,2677.0,2676.9,0.747]
[1739758892950,0.74702,2676.9,2676.8,1.29964]
[1739758893147,1.355926,2677.0,2676.6,3.2078]
[1739758893351,0.74708,2676.7,2676.6,3.2078]
[1739758893549,3.16208,2676.7,2676.6,3.95491]
[1739758893751,3.5883,2676.7,2676.6,3.2078]
[1739758894252,3.5883,2676.7,2676.6,3.95491]
[1739758894950,4.33538,2676.7,2676.6,3.95491]
[1739758895950,4.33538,2676.7,2676.6,3.2078]
[1739758896852,4.33538,2676.7,2676.4,0.00560842]
[1739758896853,0.74714,2676.5,2676.4,0.00560842]
[1739758903554,2.103046,2676.6,2676.4,0.00560842]
[1739758903759,1.1733,2676.7,2676.4,0.00560842]
[1739758903955,1.1733,2676.7,2676.6,0.74711]
[1739758904163,2.415,2676.7,2676.6,0.74711]
[1739758904859,0.5445,2676.9,2676.8,0.74705]
[1739758905059,2.9595,2676.9,2676.8,0.74705]
[1739758905259,2.415,2676.9,2676.8,0.74705]
[1739758905461,0.74705,2676.8,2676.7,1.1404]
[1739758905662,2.102976,2676.8,2676.7,0.5918]
[1739758905958,2.658176,2676.8,2676.7,0.5918]
[1739758906154,1.911126,2676.8,2676.7,1.33888]
[1739758906358,2.415,2676.9,2676.8,0.74705]
[1739758907754,2.647426,2677.0,2676.9,0.74702]
[1739758907755,1.355926,2677.0,2676.9,0.74702]
[1739758907961,3.770926,2677.0,2676.9,0.74702]
[1739758908460,4.517926,2677.0,2676.9,0.74702]
[1739758908869,4.517926,2677.0,2676.7,1.947726]
[1739758909070,4.517926,2677.0,2676.8,0.74703]
[1739758909262,3.770926,2677.0,2676.7,1.947726]
[1739758909460,3.770926,2677.0,2676.9,0.74702]
[1739758910665,3.770926,2677.0,2676.7,0.5918]
[1739758910872,2.102976,2676.8,2676.7,0.5918]
[1739758911467,42.902976,2676.8,2676.7,0.5918]
[1739758911663,0.74714,2676.5,2676.4,0.00560842]
[1739758911861,0.74714,2676.5,2676.4,0.75276842]
[1739758912062,2.415,2676.6,2676.5,0.74714]
[1739758912569,2.415,2676.6,2676.5,3.95494]
[1739758914772,2.415,2676.6,2676.5,4.52364]
[1739758918283,2.415,2676.6,2676.5,1.31584]
[1739758918482,2.415,2676.6,2676.5,4.52364]
[1739758920083,1.1506,2677.2,2676.5,3.7765]
[1739758920388,2.414,2677.4,2677.3,0.7469]
[1739758920592,0.74692,2677.3,2677.2,0.74693]
[1739758921084,2.414,2677.4,2677.0,1.1055]
[1739758921275,0.74695,2677.2,2677.0,1.85248]
[1739758921588,0.74693,2677.3,2677.1,0.74696]
[1739758921987,0.74693,2677.3,2677.1,0.74695]
[1739758922182,0.60100842,2677.5,2677.2,3.2078]
[1739758922386,0.00560842,2677.5,2677.4,0.74688]
[1739758925088,0.00560842,2677.5,2677.4,1.05099607]
[1739758927089,2.414,2678.0,2677.9,0.74672]
[1739758927297,3.16066,2678.2,2677.7,3.2078]
[1739758927484,2.414,2678.2,2678.0,0.7467]
[1739758927988,0.74662,2678.4,2678.1,0.74669]
[1739758928292,2.414,2678.3,2678.2,0.5743]
[1739758928496,2.414,2678.3,2678.2,1.32096]
[1739758929887,0.00560842,2678.4,2678.3,0.74663]
[1739758934996,0.00560842,2678.4,2678.3,1.34113]
[1739758949710,0.59680842,2678.4,2678.3,1.34113]
[1739758950293,1.34341842,2678.4,2678.3,1.34113]
[1739758950499,0.59680842,2678.4,2678.3,1.34113]
[1739758951700,1.34341842,2678.4,2678.3,1.34113]
[1739758951891,0.59680842,2678.4,2678.3,1.34113]
[1739758953703,1.34341842,2678.4,2678.3,1.34113]
[1739758954604,0.59680842,2678.4,2678.2,0.5743]
[1739758954800,0.74669,2678.1,2678.0,0.74669]
[1739758954998,0.74669,2678.1,2677.9,3.95452]
[1739758955198,0.5711,2678.0,2677.9,3.95452]
[1739758956109,0.5413,2678.2,2678.1,0.74669]
[1739758956907,7.21877467,2678.3,2678.1,0.74669]
[1739758957603,7.21878467,2678.3,2678.1,0.74669]
[1739758957805,0.74666,2678.2,2678.1,0.74669]
[1739758958007,6.47213467,2678.3,2677.9,4.3281]
[1739758958402,4.06013467,2678.3,2678.2,0.74666]
[1739758958602,3.5334,2678.3,2678.2,0.74666]
[1739758958798,2.412,2678.3,2677.9,6.19493]
[1739758959007,2.412,2678.3,2678.2,0.74666]
[1739758959706,3.15865,2678.3,2678.1,0.74669]
[1739758959908,0.74667,2678.2,2678.0,0.74671]
[1739758960107,0.55,2678.1,2678.0,0.74671]
[1739758960305,1.1476,2678.1,2678.0,0.74671]
[1739758964005,1.1476,2678.1,2678.0,3.2078]
[1739758964204,1.89431,2678.1,2678.0,3.2078]
[1739758964605,3.24965764,2678.1,2678.0,3.2078]
[1739758964805,3.24965764,2678.1,2678.0,3.95452]
[1739758965013,2.50294764,2678.1,2678.0,3.95452]
[1739758965413,3.24963764,2678.1,2678.0,3.2078]
[1739758966011,3.24963764,2678.1,2678.0,3.95452]
[1739758966208,2.50294764,2678.1,2678.0,3.95452]
[1739758966408,3.24963764,2678.1,2678.0,3.95452]
[1739758966608,1.89429,2678.1,2678.0,3.95452]
[1739758967508,1.89429,2678.1,2678.0,3.2078]
[1739758968022,0.74675,2677.9,2677.8,0.00560842]
[1739758968716,0.74675,2677.9,2677.8,0.75237842]
[1739758968910,0.74674,2677.9,2677.8,0.75237842]
[1739758969111,0.74672,2678.0,2677.9,0.74674]
[1739758970115,0.74672,2678.0,2677.8,0.75235842]
[1739758970415,0.74672,2678.0,2677.9,0.74675]
[1739758972113,1.1476,2678.1,2677.8,0.00560842]
[1739758972308,0.74673,2678.0,2677.9,0.74672]
[1739758973020,1.1476,2678.1,2677.8,0.00560842]
[1739758973320,1.8943,2678.1,2678.0,0.74672]
[1739758974311,1.1476,2678.1,2677.8,0.00560842]
[1739758974514,0.74673,2678.0,2677.9,0.74672]
[1739758975518,1.1476,2678.1,2677.8,0.00560842]
[1739758975721,0.74675,2677.9,2677.8,0.75237842]
[1739758976021,3.15875,2677.9,2677.8,0.00560842]
[1739758976523,44.51035,2677.9,2677.8,0.00560842]
[1739758983423,3.71035,2677.9,2677.8,0.00560842]
[1739758990727,5.06607284,2677.9,2677.8,0.00560842]
[1739758990927,5.06607284,2677.9,2677.8,0.56300842]
[1739758992134,5.06607284,2677.9,2677.8,0.00560842]
[1739758992726,6.64802651,2677.9,2677.8,0.00560842]
[1739758993826,3.68442651,2677.9,2677.8,0.00560842]
[1739758994026,2.412,2677.9,2677.8,1.85937842]
[1739758995731,3.2078,2678.1,2677.8,1.11260842]
[1739758996034,5.6198,2678.1,2677.8,1.11260842]
[1739758996228,0.74674,2677.9,2677.8,1.85937842]
[1739758997130,0.74674,2678.0,2677.9,0.74673]
[1739758999839,3.15869,2678.1,2678.0,0.74672]
[1739759000029,0.74672,2678.0,2677.9,0.74672]
[1739759001038,2.412,2678.1,2677.8,1.11260842]
[1739759001245,0.74674,2677.9,2677.8,1.11260842]
[1739759001843,3.68441651,2677.9,2677.8,1.11260842]
[1739759002345,3.68441651,2677.9,2677.8,1.85937842]
[1739759003541,3.68441651,2677.9,2677.8,1.11260842]
[1739759003741,3.68441651,2677.9,2677.8,0.00560842]
[1739759004944,3.68441651,2677.9,2677.8,0.75237842]
[1739759005343,2.93767651,2677.9,2677.8,0.75237842]
[1739759006043,3.68441651,2677.9,2677.8,0.75237842]
[1739759006940,2.93767651,2677.9,2677.8,0.75237842]
[1739759007141,3.1587,2678.1,2678.0,0.74672]
[1739759007449,2.412,2678.1,2678.0,0.74672]
[1739759007846,2.412,2678.1,2678.0,1.30122]
[1739759008646,6.14547651,2678.2,2678.0,0.5545]
[1739759008847,3.95446,2678.2,2678.1,1.32499]
[1739759009149,6.36546,2678.2,2678.1,1.32499]
[1739759009850,0.75222842,2678.4,2678.3,0.74663]
[1739759010044,2.41660842,2678.4,2678.1,0.5783]
[1739759010248,3.16322842,2678.4,2678.3,0.74663]
[1739759010447,3.16322842,2678.4,2678.1,0.5783]
[1739759010641,3.16322842,2678.4,2678.2,0.74664]
[1739759010838,3.16322842,2678.4,2678.1,0.5783]
[1739759011052,3.16321842,2678.4,2678.3,0.74663]
[1739759011554,3.16323842,2678.4,2678.2,0.74665]
[1739759012049,3.16321842,2678.4,2678.3,0.74663]
[1739759012255,2.41660842,2678.4,2678.3,0.74663]
[1739759016058,0.00560842,2678.4,2678.3,0.74663]
[1739759022453,0.55610842,2678.4,2678.3,0.74663]
[1739759022854,0.00560842,2678.4,2678.3,0.74663]
[1739759025760,0.00560842,2678.4,2678.3,1.31403]
[1739759032480,0.00560842,2678.4,2678.3,4.52183]
[1739759037574,0.00560842,2678.4,2678.3,0.74663]
[1739759037970,0.60250842,2678.4,2678.3,0.74663]
[1739759045091,0.00560842,2678.4,2678.3,0.74663]
[1739759047694,0.00560842,2678.4,2678.3,1.89943]
[1739759050784,0.00560842,2678.4,2678.3,3.25409907]
[1739759063800,0.00560842,2678.4,2678.3,2.68219907]
[1739759064400,3.5978,2678.7,2678.3,2.68219907]
[1739759064401,0.5882,2678.7,2678.6,0.74655]
[1739759064707,3.5591,2679.1,2678.9,0.74645]
[1739759065201,1.35466907,2679.0,2678.7,0.5771]
[1739759065501,1.35466907,2679.0,2678.8,0.74648]
[1739759065697,1.35466907,2679.0,2678.7,0.5771]
[1739759065900,0.74647,2678.9,2678.8,0.74649]
[1739759066302,2.10112907,2679.0,2678.8,0.74649]
[1739759066498,0.74647,2678.9,2678.8,0.74649]
[1739759067201,2.10401836,2679.0,2678.8,0.74649]
[1739759067407,1.35755836,2679.0,2678.4,4.32886907]
[1739759067701,2.10401836,2679.0,2678.8,0.74648]
[1739759067905,0.74647,2678.9,2678.4,4.32886907]
[1739759068204,0.5862,2678.8,2678.7,0.74652]
[1739759068402,1.1619,2678.8,2678.7,0.74652]
[1739759069303,0.5757,2678.8,2678.7,0.74652]
[1739759069509,0.00288929,2679.0,2678.9,0.74647]
[1739759069805,0.00288929,2679.0,2678.9,5.30893907]
[1739759070706,0.00288929,2679.0,2678.9,3.95427]
[1739759081410,0.5862,2679.6,2678.9,11.24471944]
[1739759081610,3.5808,2679.8,2679.7,0.74624]
[1739759082019,3.5808,2679.8,2679.6,0.74625]
[1739759082412,3.5808,2679.8,2679.7,0.74624]
[1739759083809,3.5808,2679.8,2679.4,4.3977]
[1739759084104,3.5808,2679.8,2679.6,0.74625]
[1739759084310,3.5808,2679.8,2679.7,0.74624]
[1739759084510,3.5808,2679.8,2679.6,0.74625]
[1739759085117,3.5808,2679.8,2679.7,0.74624]
[1739759085317,4.32702,2679.8,2679.7,0.74624]
[1739759085812,3.5808,2679.8,2679.7,0.74624]
[1739759086409,1.1728,2679.8,2679.7,0.74624]
[1739759086805,16.24743336,2679.8,2678.3,2.9836621]
[1739759087122,3.95434,2678.7,2678.3,1.38153559]
[1739759087323,4.1618,2678.6,2678.3,1.38153559]
[1739759087532,4.1618,2678.6,2678.2,0.74666]
[1739759087739,4.90838,2678.6,2678.1,0.74668]
[1739759087931,0.74659,2678.5,2678.0,3.2078]
[1739759088243,0.74659,2678.5,2678.1,0.74668]
[1739759088435,0.00559754,2678.5,2678.0,3.21339754]
[1739759088733,0.00559754,2678.5,2678.0,3.96009754]
[1739759088734,0.74662,2678.4,2678.0,3.96009754]
[1739759088933,0.75218754,2678.5,2678.1,0.74668]
[1739759089132,0.74661,2678.4,2678.1,0.74668]
[1739759089334,0.00559754,2678.5,2678.0,0.00559754]
[1739759089531,0.74664,2678.3,2678.0,0.00559754]
[1739759089733,0.74662,2678.4,2678.0,0.75230754]
[1739759089929,0.74662,2678.4,2678.0,0.00559754]
[1739759090130,0.74662,2678.4,2678.0,0.75231754]
[1739759090933,0.00559754,2678.5,2678.0,0.00559754]
[1739759091137,0.74665,2678.3,2678.0,0.00559754]
[1739759092039,0.74662,2678.4,2678.0,0.00559754]
[1739759092434,0.74663,2678.3,2678.0,0.00559754]
[1739759092834,0.74667,2678.2,2678.0,0.00559754]
[1739759093339,0.5849,2678.1,2678.0,0.00559754]
[1739759095127,0.5849,2678.1,2678.0,0.75231754]
[1739759101639,2.408,2678.2,2678.1,0.74669]
[1739759102548,2.989,2678.4,2678.3,0.74663]
[1739759103543,0.581,2678.4,2678.3,0.74663]
[1739759104844,0.581,2678.4,2678.1,0.5653]
[1739759105045,0.581,2678.4,2678.2,0.74665]
[1739759105642,0.581,2678.4,2678.0,0.00559754]
[1739759105643,0.74663,2678.3,2678.0,0.00559754]
[1739759105950,0.74663,2678.3,2678.0,0.75229754]
[1739759106250,0.74663,2678.3,2678.1,0.74669]
[1739759106547,0.74663,2678.3,2678.0,0.00559754]
[1739759106750,1.32762,2678.4,2678.0,0.00559754]
[1739759106952,0.581,2678.4,2678.0,0.00559754]
[1739759107247,0.581,2678.4,2678.3,0.74663]
[1739759107645,0.00559754,2678.5,2678.4,0.74661]
[1739759107955,0.5896,2679.0,2678.4,3.2078]
[1739759108145,0.5896,2679.0,2678.9,0.74647]
[1739759109842,0.5896,2679.0,2678.8,0.74648]
[1739759110037,0.5896,2679.0,2678.9,0.74647]
[1739759110248,0.5896,2679.0,2678.8,0.74648]
[1739759110445,0.5896,2679.0,2678.7,0.74651]
[1739759110646,1.33605,2679.0,2678.7,0.74651]
[1739759111147,0.5896,2679.0,2678.4,3.2078]
[1739759111548,0.7465,2678.8,2678.5,0.74656]
[1739759112044,0.5687,2678.7,2678.4,3.2078]
[1739759112245,1.30327,2678.6,2678.4,3.2078]
[1739759112438,0.5815,2678.5,2678.4,3.2078]
[1739759113055,1.32808,2678.5,2678.4,3.2078]
[1739759113553,0.5815,2678.5,2678.3,0.74662]
[1739759113753,1.32808,2678.5,2678.3,0.74662]
[1739759113951,0.5815,2678.5,2678.2,0.74665]
[1739759114142,0.74661,2678.4,2678.2,0.74665]
[1739759114549,0.5461,2678.3,2678.2,0.74665]
[1739759115046,0.5461,2678.3,2678.2,0.74666]
[1739759117349,3.7645,2678.6,2678.0,1.13529754]
[1739759117549,0.554,2678.5,2678.0,3.00205754]
[1739759117749,0.554,2678.5,2678.4,0.74661]
[1739759118251,0.554,2678.5,2678.0,3.00205754]
[1739759118453,0.554,2678.5,2678.3,0.74661]
[1739759118652,0.554,2678.5,2678.0,3.00205754]
[1739759118956,0.554,2678.5,2678.4,0.74661]
[1739759122859,0.5567,2678.6,2678.2,0.5433]
[1739759122860,0.5567,2678.6,2678.5,0.74658]
[1739759125654,0.5994,2678.7,2678.2,2.40994]
[1739759125854,0.5994,2678.7,2678.6,0.74655]
[1739759126048,1.34593,2678.7,2678.5,0.74656]
[1739759126351,0.5994,2678.7,2678.5,0.74656]
[1739759126551,0.5994,2678.7,2678.6,0.74655]
[1739759129955,0.74656,2678.6,2678.4,1.34629]
[1739759130260,0.5821,2678.5,2678.4,0.74659]
[1739759131860,0.5683,2678.6,2678.5,0.74658]
[1739759132358,0.5994,2678.7,2678.6,0.74655]
[1739759138664,1.34592,2678.7,2678.6,0.74655]
[1739759139161,0.5994,2678.7,2678.6,0.74655]
[1739759140558,1.34592,2678.7,2678.6,0.74655]
[1739759141267,0.5994,2678.7,2678.6,0.74655]
[1739759141661,1.34592,2678.7,2678.6,0.74655]
[1739759142162,0.5994,2678.7,2678.6,0.74655]
[1739759143566,1.34592,2678.7,2678.6,0.74655]
[1739759144062,0.5994,2678.7,2678.6,0.74655]
[1739759144468,0.5994,2678.7,2678.2,6.78802]
[1739759144667,0.74657,2678.6,2678.5,0.74655]
[1739759144866,0.5994,2678.7,2678.3,1.86658]
[1739759145066,1.34594,2678.7,2678.6,0.74655]
[1739759145664,0.5994,2678.7,2678.2,6.78802]
[1739759145857,1.34647,2678.6,2678.5,0.74658]
[1739759146574,0.5999,2678.6,2678.5,0.74658]
[1739759147968,1.34645,2678.6,2678.5,0.74658]
[1739759148267,1.34645,2678.6,2678.2,5.12475]
[1739759148268,0.5999,2678.6,2678.2,5.12475]
[1739759148464,3.51311668,2678.5,2678.2,3.95445]
[1739759148671,3.15363,2678.4,2678.2,3.95445]
[1739759148870,0.74663,2678.3,2678.2,3.2078]
[1739759149073,1.31113,2678.3,2678.2,3.95446]
[1739759149373,0.5645,2678.3,2678.2,3.95446]
[1739759151365,0.5999,2678.6,2678.4,0.74659]
[1739759151565,2.9526,2678.5,2678.3,2.46131]
[1739759151766,2.9526,2678.5,2678.4,0.74661]
[1739759153470,2.9526,2678.5,2678.3,2.46131]
[1739759153671,2.9526,2678.5,2678.3,0.74661]
[1739759153971,3.69919,2678.5,2678.3,0.74662]
[1739759154170,3.69919,2678.5,2678.2,3.2078]
[1739759154372,3.69919,2678.5,2678.3,0.74663]
[1739759155068,0.74661,2678.4,2678.3,0.74663]
[1739759155569,3.6992,2678.5,2678.3,0.74663]
[1739759155870,0.74663,2678.3,2678.2,3.95445]
[1739759156070,5.88601668,2678.5,2678.2,3.95445]
[1739759156370,0.74662,2678.4,2678.2,3.95445]
[1739759156571,0.5647,2678.3,2678.2,3.95445]
[1739759157777,1.31133,2678.3,2678.2,0.74666]
[1739759158373,0.5647,2678.3,2678.2,0.74666]
[1739759159575,0.5647,2678.3,2678.0,0.00559754]
[1739759159772,0.74669,2678.1,2678.0,0.00559754]
[1739759159975,0.74669,2678.1,2677.6,1.86706]
[1739759159976,2.407,2678.1,2677.6,3.2078]
[1739759160166,6.14121668,2677.9,2677.5,1.92333559]
[1739759160370,1.29189,2677.8,2677.5,1.28863]
[1739759160564,2.407,2677.7,2677.5,1.28863]
[1739759160970,2.407,2677.7,2677.5,0.5418]
[1739759161170,2.407,2677.7,2677.6,0.74683]
[1739759161374,2.407,2677.7,2677.5,0.5418]
[1739759161577,0.5743,2677.6,2677.5,1.28866]
[1739759162378,0.55069754,2677.8,2677.7,0.7468]
[1739759162580,2.41259754,2677.8,2677.7,0.7468]
[1739759162781,3.15937754,2677.8,2677.6,0.74682]
[1739759163081,2.41259754,2677.8,2677.5,0.5418]
[1739759163267,2.41259754,2677.8,2677.7,0.7468]
[1739759164783,3.15937754,2677.8,2677.6,0.7468]
[1739759164981,3.15938754,2677.8,2677.6,0.74683]
[1739759165480,3.71768754,2677.8,2677.6,0.74683]
[1739759165675,4.31598754,2677.8,2677.6,0.74683]
[1739759165875,3.56919754,2677.8,2677.5,0.5418]
[1739759166071,3.56919754,2677.8,2677.7,0.7468]
[1739759166285,3.56919754,2677.8,2677.5,0.5418]
[1739759166483,4.31597754,2677.8,2677.5,0.5418]
[1739759166989,3.56919754,2677.8,2677.7,0.7468]
[1739759167192,2.41259754,2677.8,2677.7,0.7468]
[1739759168588,3.15936754,2677.8,2677.7,0.7468]
[1739759168787,2.41259754,2677.8,2677.7,0.7468]
[1739759169689,0.00559754,2677.8,2677.7,0.7468]
[1739759170892,3.2078,2678.5,2678.4,0.74661]
[1739759172187,0.5655,2678.6,2678.0,1.1641]
[1739759172496,3.71906,2678.6,2678.3,0.74661]
[1739759172801,3.71906,2678.6,2678.2,0.74664]
[1739759173197,3.71906,2678.6,2678.3,0.74663]
[1739759173498,3.71906,2678.6,2678.0,1.1641]
[1739759173699,2.9725,2678.6,2678.0,1.1641]
[1739759173895,3.68001668,2678.5,2678.1,0.74666]
[1739759174090,3.68001668,2678.5,2678.2,0.74666]
[1739759174091,1.0991,2678.4,2678.2,0.74666]
[1739759175102,1.0991,2678.4,2678.1,0.5906]
[1739759175294,0.74668,2678.2,2677.8,0.74675]
[1739759175501,6.08709668,2678.2,2677.8,0.5906]
[1739759175795,0.5558,2678.1,2677.8,1.33736]
[1739759176191,0.74673,2678.0,2677.7,1.87999]
[1739759177096,0.5558,2678.1,2677.7,1.1332]
[1739759177298,6.14121668,2677.9,2677.4,0.5906]
[1739759177603,3.95463,2677.6,2677.3,0.75248754]
[1739759177810,0.5486,2677.5,2677.4,0.74688]
[1739759178911,0.5486,2677.5,2677.3,0.75249754]
[1739759179505,0.5486,2677.5,2677.3,0.00559754]
[1739759180206,1.29547,2677.5,2677.3,0.00559754]
[1739759180797,0.5486,2677.5,2677.3,0.00559754]
[1739759181804,2.407,2677.4,2677.3,0.75250754]
[1739759182005,2.407,2677.4,2677.3,0.00559754]
[1739759182698,3.15388,2677.4,2677.3,0.00559754]
[1739759191912,6.36168,2677.4,2677.3,0.00559754]
[1739759195705,47.16168,2677.4,2677.3,0.00559754]
[1739759197909,43.95388,2677.4,2677.3,0.00559754]
[1739759198114,47.16168,2677.4,2677.3,0.00559754]
[1739759205318,48.32318,2677.4,2677.3,0.00559754]
[1739759208622,7.52318,2677.4,2677.3,0.00559754]
[1739759211420,3.95468,2677.4,2677.3,0.00559754]
[1739759211729,6.36268,2677.4,2677.3,1.34280754]
[1739759212122,5.6158,2677.4,2677.3,1.34280754]
[1739759213823,3.2078,2677.4,2677.3,1.34280754]
[1739759214024,3.2078,2677.7,2677.6,0.74683]
[1739759214225,5.6158,2677.7,2677.6,0.74683]
[1739759214621,6.88794668,2678.0,2677.3,2.46316754]
[1739759214816,2.408,2677.9,2677.8,0.74677]
[1739759215224,2.408,2677.9,2677.3,2.46316754]
[1739759215426,2.408,2677.9,2677.8,0.74677]
[1739759217223,2.408,2677.9,2677.5,0.5915]
[1739759217224,3.2078,2678.0,2677.9,0.74675]
[1739759217431,6.88786668,2678.3,2678.0,0.7467]
[1739759217627,2.407,2678.2,2678.1,0.5929]
[1739759218224,3.15366,2678.2,2678.1,0.5929]
[1739759218425,2.407,2678.2,2678.1,1.93109]
[1739759218827,6.14121668,2678.3,2678.1,1.1844]
[1739759219035,2.407,2678.2,2678.1,1.93109]
[1739759219935,6.70941668,2678.6,2678.4,0.7466]
[1739759220236,2.407,2678.5,2678.4,0.7466]
[1739759223536,2.407,2678.5,2678.1,1.1844]
[1739759224034,2.407,2678.5,2678.4,0.74661]
[1739759225640,6.14121668,2678.6,2678.5,0.74658]
[1739759225641,5.6148,2678.6,2678.5,0.74658]
[1739759226740,3.2078,2678.6,2678.5,0.74658]
[1739759228140,3.2078,2678.6,2678.1,6.25889]
[1739759228440,3.2078,2678.6,2678.5,0.74658]
[1739759232741,0.00559754,2678.7,2678.6,0.74655]
[1739759242046,0.56519754,2678.7,2678.6,0.74655]
[1739759244459,1.31171754,2678.7,2678.6,0.74655]
[1739759244758,0.56519754,2678.7,2678.6,0.74655]
[1739759245157,0.56519754,2678.7,2678.3,0.597]
[1739759245363,1.31173754,2678.7,2678.5,0.74657]
[1739759246558,0.56519754,2678.7,2678.6,0.74655]
[1739759247267,0.00559754,2678.7,2678.6,0.74655]
[1739759247458,0.00559754,2678.7,2678.5,0.74657]
[1739759247761,0.00559754,2678.7,2678.6,0.74655]
[1739759248064,0.56999754,2678.7,2678.6,0.74655]
[1739759249370,0.00559754,2678.7,2678.6,0.74655]
[1739759250958,3.2078,2679.0,2678.6,3.67996668]
[1739759251258,3.2078,2679.0,2678.9,0.74647]
[1739759251658,6.7869,2679.4,2679.3,0.74635]
[1739759252158,4.3809,2679.4,2679.3,0.74635]
[1739759253858,1.1731,2679.4,2679.3,0.74635]
[1739759254065,0.5758,2679.4,2679.3,0.74635]
[1739759254866,0.56418889,2679.6,2679.5,0.7463]
[1739759255069,2.96918889,2679.6,2679.5,0.7463]
[1739759255863,0.56418889,2679.6,2679.5,0.7463]
[1739759256261,0.56418889,2679.6,2679.2,1.7231]
[1739759256458,1.31046889,2679.6,2679.4,0.74633]
[1739759256765,0.56418889,2679.6,2679.2,1.7231]
[1739759257167,0.56418889,2679.6,2679.4,0.74631]